fUSD/lending_fUSD_20260401
["ID","MTS","AMOUNT","RATE_DAILY","PERIOD"]
[419217028,1775022643850,-500.0,0.00011072,2]
[419217029,1775022643859,-500.0,0.00011072,2]
[419217030,1775022643870,-500.0,0.00011072,2]
[419217031,1775022643880,-500.0,0.00011072,2]
[419217032,1775022643890,-500.0,0.00011072,2]
[419217033,1775022643900,-500.0,0.00011072,2]
[419217034,1775022643910,-500.0,0.00011072,2]
[419217035,1775022643919,-500.0,0.00011072,2]
[419217036,1775022643929,-560.0,0.00011072,2]
[419217037,1775022643938,-500.0,0.00011072,2]
[419217038,1775022643949,-500.0,0.00011072,2]
[419217039,1775022643959,-500.0,0.00011072,2]
[419217040,1775022643969,-500.0,0.00011072,2]
[419217041,1775022643979,-500.0,0.00011072,2]
[419217042,1775022643989,-500.0,0.00011072,2]
[419217043,1775022643999,-200.0,0.00011096,2]
[419217044,1775022644009,-16705.5248797,0.00011099,2]
[419217045,1775022644019,-16705.52487968,0.00011099,2]
[419217046,1775022644029,-16705.52487968,0.00011099,2]
[419217047,1775022644039,-16705.52487968,0.00011099,2]
[419217048,1775022644048,-16705.52487968,0.00011099,2]
[419217049,1775022644058,-16705.52487968,0.00011099,2]
[419217050,1775022644068,-16705.52487968,0.00011099,2]
[419217051,1775022644077,-16705.52487968,0.00011099,2]
[419217052,1775022644086,-16705.52487968,0.00011099,2]
[419217053,1775022644096,-16705.52487968,0.00011099,2]
[419217054,1775022644106,-34875.33892424,0.00011099,2]
[419217055,1775022644118,-34875.33892415,0.00011099,2]
[419217056,1775022644132,-34875.33892415,0.00011099,2]
[419217057,1775022644145,-34875.33892415,0.00011099,2]
[419217058,1775022644157,-34875.33892415,0.00011099,2]
[419217059,1775022644169,-34875.33892415,0.00011099,2]
[419217060,1775022644181,-34875.33892415,0.00011099,2]
[419217061,1775022644192,-34875.33892415,0.00011099,2]
[419217062,1775022644203,-34875.33892415,0.00011099,2]
[419217063,1775022644216,-34875.33892415,0.00011099,2]
[419217064,1775022644228,-1002.40136321,0.00011104,2]
[419217065,1775022644241,-2000.0,0.00011186,2]
[419217066,1775022644254,-2000.0,0.00011186,2]
[419217067,1775022644266,-2000.0,0.00011186,2]
[419217068,1775022644277,-192.3637,0.000113,7]
[419217069,1775022644289,-150.0,0.00011346,2]
[419217070,1775022644302,-150.0,0.00011346,2]
[419217071,1775022644315,-150.0,0.00011346,2]
[419217072,1775022644327,-197.65781346,0.00011346,2]
[419217073,1775022644337,-200.0,0.00011644,2]
[419217074,1775022644349,-250.0,0.00011673,2]
[419217075,1775022644361,-899.64837719,0.00011734,2]
[419217076,1775022644372,-2500.0,0.00011734,2]
[419217077,1775022644385,-1156.20131343,0.00011734,2]
[419217078,1775022644397,-3292.0,0.00011757,2]
[419217079,1775022644408,-227.0,0.00011891,2]
[419217080,1775022644420,-736.0,0.00011891,2]
[419217081,1775022644431,-13353.1183249,0.00011936,2]
[419217082,1775022644442,-738.34266846,0.00012023,2]
[419217083,1775022644454,-200.0,0.00012192,2]
[419217084,1775022644466,-954.1981373,0.00012282,2]
[419217085,1775022644477,-246.6921,0.000127,12]
[419217086,1775022644487,-151.67371875,0.00012739,2]
[419217087,1775022644498,-200.0,0.0001274,2]
[419217088,1775022644511,-4609.0,0.00012933,2]
[419217089,1775022644522,-565.89807357,0.00012987,2]
[419217090,1775022644534,-156.255043,0.00012987,2]
[419217091,1775022644547,-168.5562334,0.00012987,2]
[419217092,1775022644559,-185.9216196,0.00012987,2]
[419217093,1775022644570,-238.50456871,0.00012987,2]
[419217094,1775022644583,-169.3590917,0.00012987,2]
[419217096,1775022644595,-766.83906749,0.00012987,2]
[419217097,1775022644606,-1252.0,0.00013079,2]
[419217098,1775022644617,-505.0,0.00013111,2]
[419217099,1775022644630,-1298.83805548,0.0001326,2]
[419217100,1775022644642,-418.57659152,0.0001326,2]
[419217101,1775022644655,-262.62345205,0.0001326,2]
[419217102,1775022644667,-1344.5927218,0.0001326,2]
[419217103,1775022644679,-500.0,0.00013288,2]
[419217104,1775022644692,-200.0,0.00013288,2]
[419217105,1775022644703,-500.0,0.00013698,2]
[419217106,1775022644713,-500.0,0.00013698,2]
[419217107,1775022644724,-500.0,0.00013698,2]
[419217108,1775022644736,-500.0,0.00013698,2]
[419217109,1775022644747,-500.0,0.00013698,2]
[419217110,1775022644757,-500.0,0.00013698,2]
[419217111,1775022644771,-500.0,0.00013698,2]
[419217112,1775022644783,-500.0,0.00013698,2]
[419217113,1775022644795,-500.0,0.00013698,2]
[419217114,1775022644806,-289.97620277,0.00013698,2]
[419217115,1775022644817,-500.0,0.00013698,2]
[419217116,1775022644829,-500.0,0.00013698,2]
[419217117,1775022644841,-500.0,0.00013698,2]
[419217118,1775022644853,-500.0,0.00013698,2]
[419217119,1775022644866,-500.0,0.00013698,2]
[419217120,1775022644880,-183.58723642,0.00013698,2]
[419217121,1775022644892,-500.0,0.00013698,2]
[419217122,1775022644903,-500.0,0.00013698,2]
[419217123,1775022644914,-500.0,0.00013698,2]
[419217124,1775022644928,-500.0,0.00013698,2]
[419217125,1775022644939,-500.0,0.00013698,2]
[419217126,1775022644951,-500.0,0.00013698,2]
[419217127,1775022644962,-500.0,0.00013698,2]
[419217128,1775022644973,-500.0,0.00013698,2]
[419217129,1775022644984,-500.0,0.00013698,2]
[419217130,1775022644995,-500.0,0.00013698,2]
[419217131,1775022645006,-500.0,0.00013698,2]
[419217132,1775022645017,-500.0,0.00013698,2]
[419217133,1775022645030,-500.0,0.00013698,2]
[419217134,1775022645041,-500.0,0.00013698,2]
[419217135,1775022645052,-500.0,0.00013698,2]
[419217136,1775022645063,-500.0,0.00013698,2]
[419217137,1775022645073,-500.0,0.00013698,2]
[419217138,1775022645084,-500.0,0.00013698,2]
[419217139,1775022645095,-500.0,0.00013698,2]
[419217140,1775022645105,-500.0,0.00013698,2]
[419217141,1775022645117,-500.0,0.00013698,2]
[419217142,1775022645128,-500.0,0.00013698,2]
[419217143,1775022645139,-500.0,0.00013698,2]
[419217144,1775022645151,-500.0,0.00013698,2]
[419217145,1775022645162,-495.0,0.00013698,2]
[419217146,1775022645172,-500.0,0.00013698,2]
[419217147,1775022645183,-500.0,0.00013698,2]
[419217148,1775022645194,-500.0,0.00013698,2]
[419217149,1775022645205,-500.0,0.00013698,2]
[419217150,1775022645215,-500.0,0.00013698,2]
[419217151,1775022645226,-500.0,0.00013698,2]
[419217152,1775022645236,-500.0,0.00013698,2]
[419217153,1775022645248,-500.0,0.00013698,2]
[419217154,1775022645266,-500.0,0.00013698,2]
[419217155,1775022645277,-500.0,0.00013698,2]
[419217156,1775022645288,-500.0,0.00013698,2]
[419217157,1775022645299,-500.0,0.00013698,2]
[419217158,1775022645310,-500.0,0.00013698,2]
[419217159,1775022645321,-500.0,0.00013698,2]
[419217160,1775022645331,-500.0,0.00013698,2]
[419217161,1775022645342,-500.0,0.00013698,2]
[419217162,1775022645352,-500.0,0.00013698,2]
[419217163,1775022645363,-500.0,0.00013698,2]
[419217164,1775022645373,-500.0,0.00013698,2]
[419217165,1775022645384,-500.0,0.00013698,2]
[419217166,1775022645395,-500.0,0.00013698,2]
[419217167,1775022645405,-500.0,0.00013698,2]
[419217168,1775022645416,-500.0,0.00013698,2]
[419217169,1775022645427,-500.0,0.00013698,2]
[419217170,1775022645438,-500.0,0.00013698,2]
[419217171,1775022645449,-500.0,0.00013698,2]
[419217172,1775022645459,-500.0,0.00013698,2]
[419217173,1775022645470,-500.0,0.00013698,2]
[419217174,1775022645481,-500.0,0.00013698,2]
[419217175,1775022645491,-500.0,0.00013698,2]
[419217176,1775022645502,-500.0,0.00013698,2]
[419217177,1775022645514,-500.0,0.00013698,2]
[419217178,1775022645525,-500.0,0.00013698,2]
[419217179,1775022645537,-500.0,0.00013698,2]
[419217180,1775022645548,-500.0,0.00013698,2]
[419217181,1775022645560,-500.0,0.00013698,2]
[419217182,1775022645571,-500.0,0.00013698,2]
[419217183,1775022645583,-500.0,0.00013698,2]
[419217184,1775022645594,-500.0,0.00013698,2]
[419217185,1775022645605,-561.2360171,0.00013698,2]
[419217186,1775022645617,-500.0,0.00013698,2]
[419217187,1775022645629,-500.0,0.00013698,2]
[419217188,1775022645639,-500.0,0.00013698,2]
[419217189,1775022645652,-500.0,0.00013698,2]
[419217190,1775022645665,-500.0,0.00013698,2]
[419217191,1775022645677,-500.0,0.00013698,2]
[419217192,1775022645689,-500.0,0.00013698,2]
[419217193,1775022645700,-500.0,0.00013698,2]
[419217194,1775022645712,-500.0,0.00013698,2]
[419217195,1775022645724,-500.0,0.00013698,2]
[419217196,1775022645736,-500.0,0.00013698,2]
[419217197,1775022645747,-500.0,0.00013698,2]
[419217198,1775022645759,-500.0,0.00013698,2]
[419217199,1775022645770,-500.0,0.00013698,2]
[419217200,1775022645780,-500.0,0.00013698,2]
[419217201,1775022645792,-500.0,0.00013698,2]
[419217202,1775022645802,-500.0,0.00013698,2]
[419217203,1775022645814,-500.0,0.00013698,2]
[419217204,1775022645825,-500.0,0.00013698,2]
[419217205,1775022645838,-500.0,0.00013698,2]
[419217206,1775022645850,-500.0,0.00013698,2]
[419217207,1775022645861,-500.0,0.00013698,2]
[419217208,1775022645874,-500.0,0.00013698,2]
[419217209,1775022645885,-500.0,0.00013698,2]
[419217210,1775022645896,-500.0,0.00013698,2]
[419217211,1775022645907,-500.0,0.00013698,2]
[419217212,1775022645917,-500.0,0.00013698,2]
[419217213,1775022645928,-500.0,0.00013698,2]
[419217214,1775022645939,-500.0,0.00013698,2]
[419217215,1775022645949,-500.0,0.00013698,2]
[419217216,1775022645960,-500.0,0.00013698,2]
[419217217,1775022645971,-175.33019501,0.00013698,2]
[419217218,1775022645981,-500.0,0.00013698,2]
[419217219,1775022645993,-500.0,0.00013698,2]
[419217220,1775022646004,-500.0,0.00013698,2]
[419217221,1775022646014,-504.62510561,0.00013698,2]
[419217222,1775022646025,-500.0,0.00013698,2]
[419217223,1775022646036,-500.0,0.00013698,2]
[419217224,1775022646046,-500.0,0.00013698,2]
[419217225,1775022646057,-500.0,0.00013698,2]
[419217226,1775022646067,-500.0,0.00013698,2]
[419217227,1775022646078,-500.0,0.00013698,2]
[419217228,1775022646089,-500.0,0.00013698,2]
[419217229,1775022646099,-500.0,0.00013698,2]
[419217230,1775022646109,-500.0,0.00013698,2]
[419217231,1775022646120,-500.0,0.00013698,2]
[419217232,1775022646133,-500.0,0.00013698,2]
[419217233,1775022646143,-500.0,0.00013698,2]
[419217234,1775022646154,-500.0,0.00013698,2]
[419217235,1775022646164,-500.0,0.00013698,2]
[419217236,1775022646174,-500.0,0.00013698,2]
[419217237,1775022646185,-500.0,0.00013698,2]
[419217238,1775022646196,-500.0,0.00013698,2]
[419217240,1775022646206,-500.0,0.00013698,2]
[419217242,1775022646217,-489.51900798,0.00013698,2]
[419217243,1775022646227,-500.0,0.00013698,2]
[419217244,1775022646238,-500.0,0.00013698,2]
[419217245,1775022646248,-500.0,0.00013698,2]
[419217246,1775022646259,-500.0,0.00013698,2]
[419217247,1775022646269,-502.04948952,0.00013698,2]
[419217248,1775022646280,-150.0,0.00013699,2]
[419217249,1775022646291,-150.0,0.00013699,2]
[419217250,1775022646301,-150.0,0.00013699,2]
[419217251,1775022646312,-150.0,0.00013699,2]
[419217252,1775022646323,-200.0,0.00013699,2]
[419217253,1775022646333,-177.300024,0.00013699,2]
[419217254,1775022646343,-177.300024,0.00013699,2]
[419217255,1775022646353,-177.300024,0.00013699,2]
[419217256,1775022646363,-177.300024,0.00013699,2]
[419217257,1775022646373,-158.5,0.00013699,2]
[419217258,1775022646383,-792.51,0.00013699,2]
[419217259,1775022646393,-151.0,0.00013699,2]
[419217260,1775022646404,-151.0,0.00013699,2]
[419217261,1775022646415,-151.0,0.00013699,2]
[419217262,1775022646425,-2510.14,0.00013699,2]
[419217265,1775022647445,-627.00850068,0.00013699,2]
[419217266,1775022647486,-500.0,0.00013699,2]
[419217267,1775022647516,-500.0,0.00013699,2]
[419217268,1775022647528,-500.73578888,0.00013699,2]
[419217269,1775022647538,-500.0,0.00013699,2]
[419217270,1775022647547,-500.0,0.00013699,2]
[419217271,1775022647556,-500.0,0.00013699,2]
[419217272,1775022647566,-500.0,0.00013699,2]
[419217273,1775022647576,-500.0,0.00013699,2]
[419217274,1775022647585,-500.0,0.00013699,2]
[419217275,1775022647595,-500.0,0.00013699,2]
[419217276,1775022647604,-500.0,0.00013699,2]
[419217277,1775022647614,-500.0,0.00013699,2]
[419217278,1775022647623,-330.62596809,0.00013699,2]
[419217279,1775022647632,-500.0,0.00013699,2]
[419217280,1775022647641,-500.41125099,0.00013699,2]
[419217281,1775022647651,-500.0,0.00013699,2]
[419217282,1775022647660,-500.0,0.00013699,2]
[419217283,1775022647669,-500.0,0.00013699,2]
[419217284,1775022647678,-500.0,0.00013699,2]
[419217285,1775022647688,-500.0,0.00013699,2]
[419217286,1775022647697,-500.0,0.00013699,2]
[419217287,1775022647707,-312.57026801,0.00013699,2]
[419217288,1775022647716,-500.0,0.00013699,2]
[419217289,1775022647725,-500.0,0.00013699,2]
[419217290,1775022647735,-501.8171823,0.00013699,2]
[419217291,1775022647744,-278.08,0.000137,2]
[419217292,1775022647753,-9112.08,0.000137,2]
[419217293,1775022647762,-9112.08,0.000137,2]
[419217294,1775022647772,-168.26,0.00013768,2]
[419217295,1775022647781,-150.0,0.00013973,2]
[419217296,1775022647790,-150.0,0.00013973,2]
[419217297,1775022647799,-150.0,0.00013973,2]
[419217298,1775022647811,-150.0,0.00013973,2]
[419217299,1775022647821,-500.0,0.00014027,2]
[419217300,1775022647832,-316.3642,0.000141,17]
[419217301,1775022647844,-6240.0,0.00014226,2]
[419217302,1775022647856,-1000.0,0.00014247,2]
[419217303,1775022647865,-1000.0,0.00014247,2]
[419217304,1775022647875,-2510.14,0.00014384,2]
[419217305,1775022647884,-308.0,0.00014392,2]
[419217306,1775022647895,-1579.04808524,0.00014795,2]
[419217307,1775022647906,-1500.0,0.00014795,2]
[419217308,1775022647916,-128106.53871111,0.0001506,2]
[419217309,1775022647926,-2510.14,0.00015068,2]
[419217310,1775022647938,-200.0,0.000151,7]
[419217311,1775022647948,-200.0,0.000152,7]
[419217312,1775022647958,-243.5,0.000152,7]
[419217313,1775022647967,-3285.57354797,0.00015205,2]
[419217314,1775022647979,-738.34266846,0.0001521,2]
[419217315,1775022647990,-184.18,0.00015257,2]
[419217316,1775022648000,-200.0,0.000153,7]
[419217317,1775022648010,-250.0,0.000153,7]
[419217318,1775022648020,-151.0,0.0001531,2]
[419217319,1775022648029,-151.0,0.0001531,2]
[419217320,1775022648039,-98374.1,0.0001531,2]
[419217321,1775022648049,-999.99,0.0001531,2]
[419217322,1775022648060,-8458.19,0.0001531,2]
[419217323,1775022648069,-1563.07,0.0001531,2]
[419217324,1775022648079,-175.69,0.0001531,2]
[419217325,1775022648089,-4999.99,0.0001531,2]
[419217326,1775022648100,-1210.26,0.0001531,2]
[419217327,1775022648110,-1190.47,0.0001531,2]
[419217328,1775022648120,-299.99,0.0001531,2]
[419217329,1775022648130,-6335.18,0.0001531,2]
[419217330,1775022648140,-1907.24,0.0001531,2]
[419217331,1775022648152,-4060.56,0.0001531,2]
[419217332,1775022648163,-2633.33,0.0001531,2]
[419217333,1775022648172,-9999.99,0.0001531,2]
[419217334,1775022648183,-150.99,0.0001531,2]
[419217335,1775022648193,-500.0,0.00015315,2]
[419217336,1775022648204,-2000.0,0.00015342,2]
[419217337,1775022648213,-347.14,0.0001544,2]
[419217338,1775022648224,-405.7134,0.000155,22]
[419217339,1775022648234,-599.0,0.00015507,2]
[419217340,1775022648244,-2510.14,0.00015753,2]
[419217341,1775022648254,-505.0,0.00015787,4]
[419217342,1775022648264,-250.0,0.0001589,2]
[419217343,1775022648274,-250.0,0.0001589,2]
[419217344,1775022648285,-358.45,0.0001589,2]
[419217345,1775022648295,-2000.0,0.0001589,2]
[419217346,1775022648305,-1373.36474817,0.0001589,2]
[419217347,1775022648315,-150.0,0.000159,2]
[419217348,1775022648325,-150.0,0.000159,2]
[419217349,1775022648335,-500.0,0.00016437,2]
[419217350,1775022648346,-657.0,0.00016438,2]
[419217351,1775022648355,-2510.14,0.00016438,2]
[419217352,1775022648364,-184.15653029,0.00016495,2]
[419217353,1775022648374,-160.0,0.0001664,2]
[419217354,1775022648383,-160.0,0.0001664,2]
[419217355,1775022648393,-160.0,0.0001664,2]
[419217356,1775022648402,-881.14,0.00016686,2]
[419217357,1775022648412,-157.21,0.00016712,2]
[419217358,1775022648422,-500.0,0.00016712,2]
[419217359,1775022648431,-520.297,0.000169,27]
[419217360,1775022648440,-881.14,0.0001696,2]
[419217361,1775022648450,-350.0,0.00017,2]
[419217362,1775022648459,-168.27,0.00017209,2]
[419217363,1775022648469,-881.14,0.00017234,2]
[419217364,1775022648479,-881.14,0.00017508,2]
[419217365,1775022648488,-881.14,0.00017782,2]
[419217366,1775022648497,-426.9,0.00018056,2]
[419217367,1775022648507,-785.2,0.00018142,2]
[419217368,1775022648516,-2000.0,0.000182,2]
[419217369,1775022648526,-667.242,0.000183,32]
[419217370,1775022648537,-500.0,0.00018384,2]
[419217371,1775022648547,-785.2,0.00018416,2]
[419217372,1775022648557,-505.0,0.00018462,6]
[419217373,1775022648567,-500.0,0.00018483,2]
[419217374,1775022648577,-785.2,0.0001869,2]
[419217375,1775022648587,-657.0,0.00018897,2]
[419217376,1775022648597,-785.2,0.00018964,2]
[419217377,1775022648606,-400.0,0.00019,2]
[419217378,1775022648617,-500.0,0.00019176,2]
[419217379,1775022648627,-150.1102686,0.000192,2]
[419217380,1775022648637,-785.2,0.00019238,2]
[419217381,1775022648647,-10233.4723,0.00019287,2]
[419217382,1775022648657,-785.2,0.00019512,2]
[419217383,1775022648666,-855.688,0.000196,37]
[419217384,1775022648677,-184.18,0.00019638,2]
[419217385,1775022648688,-347.14,0.00019784,2]
[419217386,1775022648697,-785.2,0.00019786,2]
[419217387,1775022648708,-297.81404585,0.0002,20]
[419217388,1775022648719,-150.0,0.0002,2]
[419217389,1775022648728,-668.78,0.0002006,2]
[419217390,1775022648739,-219.07152529,0.00020074,2]
[419217391,1775022648748,-5534.0,0.000205,3]
[419217392,1775022648758,-300.0,0.00021,2]
[419217393,1775022648769,-450.0,0.00021,2]
[419217394,1775022648779,-1097.3558,0.00021,42]
[419217395,1775022648788,-505.0,0.00021138,8]
[419217396,1775022648799,-657.0,0.00021356,2]
[419217397,1775022648809,-250.0,0.00021811,4]
[419217398,1775022648819,-383.5,0.0002189,2]
[419217399,1775022648828,-288.43,0.0002189,2]
[419217400,1775022648838,-2000.0,0.000219,2]
[419217401,1775022648848,-500.0,0.00021915,2]
[419217402,1775022648857,-426.0,0.00022,2]
[419217403,1775022648867,-153.0,0.00022,2]
[419217404,1775022648877,-879.0,0.00022,2]
[419217405,1775022648886,-1338.0,0.00022,2]
[419217406,1775022648897,-4165.0,0.00022,2]
[419217407,1775022648907,-232.12,0.00022,30]
[419217408,1775022648916,-1219.0,0.00022,2]
[419217409,1775022648926,-525.0,0.00022,2]
[419217410,1775022648940,-1141.0,0.00022047,10]
[419217411,1775022648950,-861.0,0.00022047,10]
[419217412,1775022648961,-1407.2767,0.000224,47]
[419217413,1775022648971,-423.91679296,0.00022529,2]
[419217414,1775022648982,-178.24115018,0.00022615,2]
[419217415,1775022648993,-3607.8,0.0002274,2]
[419217416,1775022649003,-500.0,0.00022959,2]
[419217417,1775022649013,-500.0,0.00023,2]
[419217418,1775022649024,-426.0,0.00023,2]
[419217419,1775022649034,-153.0,0.00023,2]
[419217420,1775022649044,-879.0,0.00023,2]
[419217421,1775022649054,-1338.0,0.00023,2]
[419217422,1775022649064,-4165.0,0.00023,2]
[419217423,1775022649074,-1219.0,0.00023,2]
[419217424,1775022649084,-525.0,0.00023,2]
[419217425,1775022649094,-150.0,0.00023182,2]
[419217426,1775022649104,-150.0,0.00023182,2]
[419217427,1775022649114,-150.0,0.00023182,2]
[419217428,1775022649126,-150.0,0.00023182,2]
[419217429,1775022649136,-150.0,0.00023182,2]
[419217430,1775022649146,-150.0,0.00023182,2]
[419217431,1775022649155,-150.0,0.00023182,2]
[419217432,1775022649165,-174.0,0.00023182,2]
[419217433,1775022649175,-1000.0,0.000233,7]
[419217434,1775022649185,-1000.0,0.000233,7]
[419217435,1775022649195,-1000.0,0.000233,7]
[419217436,1775022649206,-1000.0,0.000233,7]
[419217437,1775022649216,-1000.0,0.000233,7]
[419217438,1775022649225,-1000.0,0.000233,7]
[419217439,1775022649235,-1000.0,0.000233,7]
[419217440,1775022649245,-838.11,0.000233,7]
[419217441,1775022649254,-578.20924308,0.00023468,2]
[419217442,1775022649264,-500.0,0.00023468,2]
[419217443,1775022649275,-194.72792766,0.00023468,2]
[419217444,1775022649285,-200.0,0.00023468,2]
[419217445,1775022649295,-1328.27659266,0.00023468,2]
[419217446,1775022649305,-500.0,0.00023468,2]
[419217447,1775022649316,-8882.6885148,0.00023468,2]
[419217448,1775022649326,-500.0,0.00023468,2]
[419217449,1775022649337,-500.0,0.00023468,2]
[419217450,1775022649349,-500.0,0.00023468,2]
[419217451,1775022649359,-500.0,0.00023468,2]
[419217452,1775022649370,-500.0,0.00023468,2]
[419217453,1775022649380,-151.0,0.00023468,2]
[419217454,1775022649391,-500.0,0.00023468,2]
[419217455,1775022649400,-151.0,0.00023468,2]
[419217456,1775022649411,-500.0,0.00023468,2]
[419217457,1775022649421,-295.29184605,0.00023468,2]
[419217458,1775022649430,-500.0,0.00023468,2]
[419217459,1775022649443,-500.0,0.00023468,2]
[419217460,1775022649453,-194.72792766,0.00023468,2]
[419217461,1775022649462,-500.0,0.00023468,2]
[419217462,1775022649473,-500.0,0.00023468,2]
[419217463,1775022649483,-500.0,0.00023468,2]
[419217464,1775022649494,-500.0,0.00023468,2]
[419217465,1775022649504,-500.0,0.00023468,2]
[419217466,1775022649516,-500.0,0.00023468,2]
[419217467,1775022649526,-500.0,0.00023468,2]
[419217468,1775022649535,-500.0,0.00023468,2]
[419217469,1775022649545,-500.0,0.00023468,2]
[419217470,1775022649555,-500.0,0.00023468,2]
[419217471,1775022649565,-500.0,0.00023468,2]
[419217472,1775022649575,-500.0,0.00023468,2]
[419217473,1775022649585,-500.0,0.00023468,2]
[419217474,1775022649595,-500.0,0.00023468,2]
[419217475,1775022649606,-500.0,0.00023468,2]
[419217476,1775022649617,-500.0,0.00023468,2]
[419217477,1775022649627,-500.0,0.00023468,2]
[419217478,1775022649637,-500.0,0.00023468,2]
[419217479,1775022649647,-500.0,0.00023468,2]
[419217480,1775022649659,-500.0,0.00023468,2]
[419217481,1775022649669,-500.0,0.00023468,2]
[419217482,1775022649681,-500.0,0.00023468,2]
[419217483,1775022649691,-174.61919141,0.00023468,2]
[419217484,1775022649702,-500.0,0.00023468,2]
[419217485,1775022649716,-500.0,0.00023468,2]
[419217486,1775022649726,-200.0,0.00023468,2]
[419217487,1775022649736,-500.0,0.00023468,2]
[419217488,1775022649746,-500.0,0.00023468,2]
[419217489,1775022649756,-151.0,0.00023468,2]
[419217490,1775022649767,-500.0,0.00023468,2]
[419217491,1775022649777,-500.0,0.00023468,2]
[419217492,1775022649787,-500.0,0.00023468,2]
[419217493,1775022649797,-250.0,0.00023468,2]
[419217494,1775022649806,-250.0,0.00023468,2]
[419217495,1775022649816,-644.79446246,0.00023468,2]
[419217496,1775022649826,-250.0,0.00023468,2]
[419217497,1775022649835,-250.0,0.00023468,2]
[419217498,1775022649845,-250.0,0.00023468,2]
[419217499,1775022649855,-250.0,0.00023468,2]
[419217500,1775022649865,-250.0,0.00023468,2]
[419217501,1775022649987,-250.0,0.00023468,2]
[419217502,1775022649997,-250.0,0.00023468,2]
[419217503,1775022650006,-250.0,0.00023468,2]
[419217504,1775022650016,-250.0,0.00023468,2]
[419217505,1775022650030,-250.0,0.00023468,2]
[419217506,1775022650040,-151.0,0.00023468,2]
[419217507,1775022650049,-279.9045709,0.00023468,2]
[419217508,1775022650059,-250.0,0.00023468,2]
[419217509,1775022650068,-194.71896081,0.00023468,2]
[419217510,1775022650078,-743.50770149,0.00023468,2]
[419217511,1775022650098,-262.90206542,0.00023468,2]
[419217512,1775022650109,-500.0,0.00023468,2]
[419217513,1775022650119,-500.0,0.00023468,2]
[419217514,1775022650130,-500.0,0.00023468,2]
[419217515,1775022650140,-500.0,0.00023468,2]
[419217516,1775022650149,-500.0,0.00023468,2]
[419217517,1775022650159,-9211.34798985,0.00023523,2]
[419217518,1775022650169,-500.0,0.00023523,2]
[419217519,1775022650179,-151.0,0.00023523,2]
[419217520,1775022650188,-272.62944185,0.00023523,2]
[419217521,1775022650198,-9552.16786547,0.00023578,2]
[419217522,1775022650207,-500.0,0.00023578,2]
[419217523,1775022650217,-151.0,0.00023578,2]
[419217524,1775022650227,-282.71673119,0.00023578,2]
[419217525,1775022650236,-9905.5980765,0.00023633,2]
[419217526,1775022650246,-500.0,0.00023633,2]
[419217527,1775022650255,-151.0,0.00023633,2]
[419217528,1775022650264,-293.17725025,0.00023633,2]
[419217529,1775022650274,-10272.10520533,0.00023688,2]
[419217530,1775022650284,-500.0,0.00023688,2]
[419217531,1775022650295,-151.0,0.00023688,2]
[419217532,1775022650304,-304.02480851,0.00023688,2]